bitfinex-derivatives/quotes_SOLF0:USTF0_20230904
["timestamp","ask_amount","ask_price","bid_price","bid_amount"]
[1693855654462,63.98188411,19.386,19.367,25.81711]
[1693855655253,63.98188411,19.386,19.366,15.48]
[1693855656557,63.98188411,19.386,19.365,32.47809508]
[1693855656762,15.48,19.384,19.365,32.47809508]
[1693855656957,15.48,19.382,19.365,32.47809508]
[1693855657262,0.45454546,19.381,19.365,32.47809508]
[1693855657454,15.48,19.379,19.365,32.47809508]
[1693855657653,0.45454546,19.379,19.365,32.47809508]
[1693855657856,15.48,19.384,19.365,32.47809508]
[1693855658056,15.48,19.382,19.365,32.47809508]
[1693855658359,0.45454546,19.381,19.365,32.47809508]
[1693855658660,15.48,19.379,19.365,32.47809508]
[1693855658856,0.45454546,19.379,19.365,32.47809508]
[1693855659053,15.48,19.384,19.365,32.47809508]
[1693855659362,15.48,19.382,19.365,32.47809508]
[1693855659559,0.45454546,19.381,19.365,32.47809508]
[1693855659762,15.48,19.379,19.365,32.47809508]
[1693855659961,0.45454546,19.379,19.365,32.47809508]
[1693855660259,15.48,19.384,19.365,32.47809508]
[1693855660461,15.48,19.382,19.365,32.47809508]
[1693855660653,0.45454546,19.381,19.365,32.47809508]
[1693855660856,15.48,19.384,19.365,32.47809508]
[1693855661054,15.48,19.382,19.365,32.47809508]
[1693855661258,0.45454546,19.381,19.365,32.47809508]
[1693855661464,15.48,19.379,19.365,32.47809508]
[1693855661665,0.45454546,19.379,19.365,32.47809508]
[1693855661865,15.48,19.384,19.365,32.47809508]
[1693855662160,63.98188411,19.386,19.365,32.47809508]
[1693855662161,15.48,19.382,19.365,32.47809508]
[1693855662359,0.45454546,19.381,19.365,32.47809508]
[1693855662661,15.48,19.384,19.365,32.47809508]
[1693855662862,15.48,19.382,19.365,32.47809508]
[1693855663063,0.45454546,19.381,19.365,32.47809508]
[1693855663363,15.48,19.379,19.365,32.47809508]
[1693855663556,0.45454546,19.384,19.365,32.47809508]
[1693855663760,15.48,19.384,19.365,32.47809508]
[1693855663959,15.48,19.382,19.365,32.47809508]
[1693855664260,0.45454546,19.381,19.365,32.47809508]
[1693855664566,15.48,19.384,19.365,32.47809508]
[1693855664863,15.48,19.382,19.365,32.47809508]
[1693855665064,0.45454546,19.381,19.365,32.47809508]
[1693855665363,15.48,19.384,19.365,32.47809508]
[1693855665563,15.48,19.382,19.365,32.47809508]
[1693855665764,0.45454546,19.381,19.365,32.47809508]
[1693855665956,15.48,19.384,19.365,32.47809508]
[1693855666159,15.48,19.382,19.365,32.47809508]
[1693855666354,0.45454546,19.381,19.365,32.47809508]
[1693855666559,15.48,19.384,19.365,32.47809508]
[1693855666757,15.48,19.382,19.365,32.47809508]
[1693855666959,0.45454546,19.381,19.365,32.47809508]
[1693855667159,15.48,19.379,19.365,32.47809508]
[1693855667367,0.45454546,19.384,19.365,32.47809508]
[1693855667666,15.48,19.384,19.365,32.47809508]
[1693855667866,15.48,19.382,19.365,32.47809508]
[1693855668066,0.45454546,19.381,19.365,32.47809508]
[1693855668267,15.48,19.384,19.365,32.47809508]
[1693855668468,15.48,19.382,19.365,32.47809508]
[1693855668768,0.45454546,19.381,19.365,32.47809508]
[1693855669069,15.48,19.379,19.366,0.06288643]
[1693855669370,0.45454546,19.384,19.366,0.06288643]
[1693855669568,21.4528,19.378,19.366,0.06288643]
[1693855683278,61.99825453,19.378,19.366,0.06288643]
[1693855698391,61.99825453,19.378,19.365,32.47809508]
[1693855699587,61.99825453,19.378,19.366,0.06288643]
[1693855761327,61.99825453,19.378,19.352,21.0933]
[1693855761626,61.99825453,19.378,19.353,0.22727272]
[1693855767333,61.99825453,19.378,19.352,30.79627377]
[1693855768028,62.45279999,19.378,19.352,30.79627377]
[1693855773837,62.45279999,19.378,19.366,0.06288642]
[1693855774234,61.99825453,19.378,19.366,0.06288642]
[1693855774737,62.45279999,19.378,19.366,0.06288642]
[1693855775031,61.99825453,19.378,19.366,0.06288642]
[1693855776439,62.45279999,19.378,19.366,0.06288642]
[1693855776638,61.99825453,19.378,19.366,0.06288642]
[1693855777234,62.45279999,19.378,19.366,0.06288642]
[1693855777538,61.99825453,19.378,19.366,0.06288642]
[1693855777732,0.45454546,19.377,19.366,0.00288642]
[1693855777929,49.99404331,19.377,19.366,0.00288642]
[1693855778134,15.49,19.375,19.366,0.00288642]
[1693855778333,0.45454546,19.374,19.366,0.00288642]
[1693855778537,0.45454546,19.373,19.366,0.00288642]
[1693855778744,15.49,19.371,19.366,0.00288642]
[1693855778937,15.49,19.369,19.366,0.00288642]
[1693855779135,0.45454546,19.368,19.366,0.00288642]
[1693855779439,47.64099676,19.377,19.366,0.00288642]
[1693855779440,15.94454546,19.367,19.366,0.00288642]
[1693855779640,0.45454546,19.375,19.366,0.00288642]
[1693855779840,0.45454546,19.374,19.366,0.00288642]
[1693855780037,0.45454546,19.373,19.366,0.00288642]
[1693855780241,15.49,19.371,19.366,0.00288642]
[1693855780439,47.64099676,19.377,19.366,0.00288642]
[1693855780638,15.49,19.375,19.366,0.00288642]
[1693855780842,0.45454546,19.374,19.366,0.00288642]
[1693855781039,0.45454546,19.373,19.366,0.00288642]
[1693855781243,15.49,19.375,19.366,0.00288642]
[1693855781435,0.45454546,19.374,19.366,0.00288642]
[1693855781640,15.49,19.375,19.366,0.00288642]
[1693855781844,0.45454546,19.374,19.366,0.00288642]
[1693855782037,15.49,19.375,19.366,0.00288642]
[1693855782344,0.45454546,19.374,19.366,0.00288642]
[1693855782541,15.49,19.375,19.366,0.00288642]
[1693855782846,0.45454546,19.374,19.366,0.00288642]
[1693855783148,15.49,19.375,19.366,0.00288642]
[1693855783346,0.45454546,19.374,19.366,0.00288642]
[1693855783546,15.49,19.375,19.366,0.00288642]
[1693855783843,0.45454546,19.374,19.366,0.00288642]
[1693855784147,15.49,19.375,19.366,0.00288642]
[1693855784441,0.45454546,19.374,19.366,0.00288642]
[1693855784647,15.49,19.375,19.366,0.00288642]
[1693855784848,0.45454546,19.374,19.366,0.00288642]
[1693855785146,15.49,19.375,19.366,0.00288642]
[1693855785447,0.45454546,19.374,19.366,0.00288642]
[1693855785648,15.49,19.375,19.366,0.00288642]
[1693855785940,0.45454546,19.374,19.366,0.00288642]
[1693855786145,15.49,19.375,19.366,0.00288642]
[1693855786344,0.45454546,19.374,19.366,0.00288642]
[1693855786548,15.49,19.375,19.366,0.00288642]
[1693855786746,0.45454546,19.374,19.366,0.00288642]
[1693855786947,15.49,19.375,19.366,0.00288642]
[1693855787147,0.45454546,19.374,19.366,0.00288642]
[1693855787348,15.49,19.375,19.366,0.00288642]
[1693855787644,0.45454546,19.374,19.366,0.00288642]
[1693855787847,0.45454546,19.373,19.343,0.22727272]
[1693855788048,47.64099676,19.377,19.344,20.2301]
[1693855788049,15.49,19.371,19.344,20.2301]
[1693855788254,0.45454546,19.371,19.345,9.49271083]
[1693855788450,0.45454546,19.373,19.345,9.49271083]
[1693855789747,0.45454546,19.373,19.366,0.06288641]
[1693855790247,298.28625929,19.377,19.366,0.06288641]
[1693855790248,15.49,19.371,19.366,0.06288641]
[1693855790445,0.45454546,19.375,19.366,0.06288641]
[1693855790648,15.49,19.375,19.366,0.06288641]
[1693855790853,0.45454546,19.374,19.366,0.06288641]
[1693855791054,15.49,19.375,19.366,0.06288641]
[1693855791255,0.45454546,19.374,19.366,0.06288641]
[1693855791554,15.49,19.375,19.366,0.06288641]
[1693855791850,0.45454546,19.374,19.366,0.06288641]
[1693855792055,0.45454546,19.373,19.366,0.06288641]
[1693855792254,0.45454546,19.374,19.366,0.06288641]
[1693855792455,15.49,19.375,19.366,0.06288641]
[1693855792657,0.45454546,19.374,19.366,0.06288641]
[1693855792956,15.49,19.375,19.366,0.06288641]
[1693855793156,0.45454546,19.374,19.366,0.06288641]
[1693855802467,0.45454546,19.374,19.352,21.463]
[1693855803660,0.45454546,19.374,19.366,0.06288641]
[1693855807567,41.70335917,19.374,19.366,0.06288641]
[1693855807758,15.49,19.375,19.366,0.06288641]
[1693855811964,56.58504131,19.375,19.366,0.06288641]
[1693855816671,15.5,19.379,19.366,0.06288641]
[1693855817477,15.5,19.379,19.357,247.95146907]
[1693855818578,15.5,19.379,19.366,0.06288641]
[1693855823385,250.64526253,19.38,19.366,0.06288641]
[1693855823588,15.5,19.384,19.366,0.06288641]
[1693855823775,56.93727412,19.384,19.366,0.06288641]
[1693855832683,56.93727412,19.384,19.365,61.82076971]
[1693855833887,56.93727412,19.384,19.366,0.06288641]
[1693855884028,56.93727412,19.384,19.365,36.00099971]
[1693855884525,15.48,19.382,19.353,500.0]
[1693855884829,1.89854237,19.381,19.353,500.0]
[1693855885130,15.48,19.379,19.353,500.0]
[1693855885332,15.48,19.384,19.355,40.73477811]
[1693855885527,15.48,19.382,19.355,40.73477811]
[1693855885723,1.8985423,19.381,19.355,40.73477811]
[1693855885932,15.48,19.379,19.355,40.73477811]
[1693855886226,15.48,19.384,19.355,40.73477811]
[1693855886426,15.48,19.382,19.355,40.73477811]
[1693855886724,1.89853828,19.383,19.355,40.73477811]
[1693855886725,1.89853828,19.381,19.355,40.73477811]
[1693855886930,15.48,19.379,19.355,40.73477811]
[1693855887231,15.48,19.384,19.355,40.73477811]
[1693855887430,15.48,19.382,19.355,40.73477811]
[1693855887626,1.89853041,19.381,19.355,40.73477811]
[1693855887831,15.48,19.379,19.355,40.73477811]
[1693855888134,15.48,19.384,19.355,40.73477811]
[1693855888322,15.48,19.382,19.355,40.73477811]
[1693855888527,1.89852618,19.381,19.355,40.73477811]
[1693855888724,15.48,19.379,19.355,40.73477811]
[1693855888926,15.48,19.384,19.355,40.73477811]
[1693855889122,15.48,19.382,19.355,40.73477811]
[1693855889325,1.89852482,19.381,19.355,40.73477811]
[1693855889525,15.48,19.379,19.355,40.73477811]
[1693855889732,15.48,19.384,19.355,40.73477811]
[1693855889925,15.48,19.382,19.355,40.73477811]
[1693855890130,1.89852602,19.381,19.355,40.73477811]
[1693855890332,15.48,19.379,19.355,40.73477811]
[1693855890528,0.45454546,19.378,19.355,40.73477811]
[1693855890726,15.48,19.382,19.355,40.73477811]
[1693855890934,2.35307058,19.381,19.355,40.73477811]
[1693855891133,15.48,19.384,19.355,40.73477811]
[1693855891134,15.48,19.379,19.355,40.73477811]
[1693855891336,0.45454546,19.378,19.355,40.73477811]
[1693855891534,0.45454546,19.377,19.355,40.73477811]
[1693855891735,2.35306978,19.381,19.355,40.73477811]
[1693855892034,15.48,19.379,19.355,40.73477811]
[1693855892238,0.45454546,19.378,19.355,40.73477811]
[1693855892534,0.45454546,19.377,19.355,40.73477811]
[1693855892735,2.35306443,19.381,19.355,40.73477811]
[1693855892935,15.48,19.379,19.355,40.73477811]
[1693855893134,628.2621259,19.385,19.355,40.73477811]
[1693855893135,0.45454546,19.378,19.355,40.73477811]
[1693855893335,0.45454546,19.377,19.355,40.73477811]
[1693855893530,15.48,19.375,19.355,40.73477811]
[1693855893739,15.93454546,19.375,19.355,40.73477811]
[1693855893936,15.93454546,19.375,19.366,0.06288641]
[1693855894437,20.6318,19.374,19.366,0.06288641]
[1693855894831,15.93454546,19.375,19.366,0.06288641]
[1693855895033,20.6318,19.374,19.366,0.06288641]
[1693855895237,15.93454546,19.375,19.366,0.06288641]
[1693855895738,21.3651,19.374,19.366,0.06288641]
[1693855896534,21.3651,19.374,19.347,20.7324]
[1693855896735,0.45454546,19.373,19.347,20.7324]
[1693855896929,15.49,19.371,19.347,62.16215205]
[1693855897133,15.49,19.369,19.347,62.16215205]
[1693855897433,0.45454546,19.368,19.347,62.16215205]
[1693855897628,0.45454546,19.374,19.347,62.16215205]
[1693855902038,2.35367659,19.374,19.347,62.16215205]
[1693855902340,0.45454546,19.373,19.347,20.7324]
[1693855908643,0.45454546,19.373,19.366,0.06288641]
[1693855908844,0.45454546,19.373,19.366,0.00288641]
[1693855909144,21.05804546,19.373,19.366,0.00288641]
[1693855909339,15.49,19.371,19.366,0.00288641]
[1693855909539,15.49,19.369,19.366,0.00288641]
[1693855909742,0.45454546,19.368,19.366,0.00288641]
[1693855909943,15.49,19.371,19.366,0.00288641]
[1693855910143,15.49,19.369,19.366,0.00288641]
[1693855910342,0.45454546,19.368,19.366,0.00288641]
[1693855910540,0.45454546,19.367,19.366,0.00288641]
[1693855910842,15.49,19.369,19.366,0.00288641]
[1693855911040,0.45454546,19.368,19.366,0.00288641]
[1693855911240,15.49,19.371,19.366,0.00288641]
[1693855911442,15.49,19.369,19.366,0.00288641]
[1693855911745,0.45454546,19.368,19.366,0.00288641]
[1693855911941,15.49,19.371,19.366,0.00288641]
[1693855912142,15.49,19.369,19.366,0.00288641]
[1693855912342,0.45454546,19.368,19.366,0.00288641]
[1693855912542,15.49,19.371,19.366,0.00288641]
[1693855912741,15.49,19.369,19.366,0.00288641]
[1693855913040,0.45454546,19.368,19.366,0.00288641]
[1693855913241,0.45454546,19.367,19.366,0.00288641]
[1693855913442,15.49,19.369,19.366,0.00288641]
[1693855913641,0.45454546,19.368,19.366,0.00288641]
[1693855913842,0.45454546,19.367,19.366,0.00288641]
[1693855914144,15.49,19.369,19.366,0.00288641]
[1693855914345,0.45454546,19.368,19.366,0.00288641]
[1693855914538,15.49,19.371,19.366,0.00288641]
[1693855914742,15.49,19.369,19.366,0.00288641]
[1693855914942,15.49,19.371,19.366,0.00288641]
[1693855915142,15.49,19.369,19.366,0.00288641]
[1693855915345,15.49,19.371,19.366,0.00288641]
[1693855915548,15.49,19.369,19.366,0.00288641]
[1693855915844,0.45454546,19.369,19.366,0.00288641]
[1693855916043,15.49,19.371,19.366,0.00288641]
[1693855916245,15.49,19.369,19.366,0.00288641]
[1693855916444,0.45454546,19.369,19.366,0.00288641]
[1693855916640,15.49,19.371,19.366,0.00288641]
[1693855916844,15.49,19.369,19.366,0.00288641]
[1693855917049,15.49,19.371,19.366,0.00288641]
[1693855917345,15.49,19.369,19.366,0.00288641]
[1693855917537,15.49,19.371,19.366,0.00288641]
[1693855917742,15.49,19.369,19.366,0.00288641]
[1693855917939,0.45454546,19.369,19.366,0.00288641]
[1693855918147,15.49,19.371,19.366,0.00288641]
[1693855918347,15.49,19.369,19.366,0.00288641]
[1693855918553,0.45454546,19.369,19.366,0.00288641]
[1693855918752,15.49,19.371,19.366,0.00288641]
[1693855919050,62.76052478,19.373,19.366,0.00288641]
[1693855919051,15.49,19.369,19.366,0.00288641]
[1693855919252,15.49,19.371,19.366,0.00288641]
[1693855919449,15.49,19.369,19.366,0.00288641]
[1693855919649,0.45454546,19.369,19.366,0.00288641]
[1693855919950,15.49,19.371,19.366,0.00288641]
[1693855920151,15.49,19.369,19.366,0.00288641]
[1693855920454,0.45454546,19.369,19.366,0.00288641]
[1693855920751,15.49,19.371,19.366,0.00288641]
[1693855920950,15.49,19.369,19.366,0.00288641]
[1693855921152,15.49,19.371,19.366,0.00288641]
[1693855921348,15.49,19.369,19.366,0.00288641]
[1693855921549,15.49,19.371,19.366,0.00288641]
[1693855921852,15.49,19.369,19.366,0.00288641]
[1693855922151,15.49,19.371,19.366,0.00288641]
[1693855922354,15.49,19.369,19.366,0.00288641]
[1693855922653,0.45454546,19.369,19.366,0.00288641]
[1693855922851,15.49,19.371,19.366,0.00288641]
[1693855923055,15.49,19.369,19.366,0.00288641]
[1693855923250,15.49,19.371,19.366,0.00288641]
[1693855923450,15.49,19.369,19.366,0.00288641]
[1693855923749,15.49,19.371,19.366,0.00288641]
[1693855923950,15.49,19.369,19.366,0.00288641]
[1693855924150,0.45454546,19.369,19.366,0.00288641]
[1693855924356,15.49,19.371,19.366,0.00288641]
[1693855924653,15.49,19.369,19.366,0.00288641]
[1693855924853,15.49,19.371,19.366,0.00288641]
[1693855925050,15.49,19.369,19.366,0.00288641]
[1693855925248,15.49,19.371,19.366,0.00288641]
[1693855925453,15.49,19.369,19.366,0.00288641]
[1693855925653,62.76052478,19.373,19.366,0.00288641]
[1693855925654,15.49,19.371,19.366,0.00288641]
[1693855925955,15.49,19.369,19.366,0.00288641]
[1693855926155,15.49,19.371,19.366,0.00288641]
[1693855926453,15.49,19.369,19.366,0.00288641]
[1693855926651,15.49,19.371,19.366,0.00288641]
[1693855926851,15.5,19.369,19.366,0.00288641]
[1693855927050,15.5,19.371,19.366,0.00288641]
[1693855927251,15.5,19.369,19.366,0.00288641]
[1693855927457,15.5,19.371,19.366,0.00288641]
[1693855927754,15.5,19.369,19.366,0.00288641]
[1693855927957,0.45454546,19.369,19.366,0.00288641]
[1693855928147,15.5,19.371,19.366,0.00288641]
[1693855928454,15.5,19.369,19.366,0.00288641]
[1693855928655,15.5,19.371,19.366,0.00288641]
[1693855928953,15.5,19.369,19.347,520.7324]
[1693855929155,15.5,19.371,19.347,520.7324]
[1693855929456,15.5,19.369,19.347,520.7324]
[1693855929654,15.5,19.371,19.347,520.7324]
[1693855929956,15.5,19.369,19.347,520.7324]
[1693855930152,15.5,19.371,19.347,520.7324]
[1693855930350,15.5,19.369,19.347,520.7324]
[1693855930554,0.45454546,19.369,19.347,520.7324]
[1693855930756,15.5,19.371,19.347,520.7324]
[1693855930953,62.76052478,19.373,19.347,520.7324]
[1693855930954,15.5,19.369,19.347,520.7324]
[1693855931155,15.5,19.371,19.347,520.7324]
[1693855931458,15.5,19.369,19.347,520.7324]
[1693855931656,0.45454546,19.369,19.347,520.7324]
[1693855931849,2.35389069,19.373,19.347,520.7324]
[1693855932049,15.5,19.371,19.347,520.7324]
[1693855932260,15.5,19.369,19.347,520.7324]
[1693855932460,0.45454546,19.369,19.347,520.7324]
[1693855932762,2.35389055,19.373,19.347,520.7324]
[1693855932961,15.5,19.371,19.347,546.5762]
[1693855933259,15.5,19.369,19.347,546.5762]
[1693855933458,0.45454546,19.369,19.347,546.5762]
[1693855933660,0.45454546,19.373,19.347,546.5762]
[1693855933858,2.35387664,19.373,19.347,546.5762]
[1693855934060,15.5,19.371,19.347,546.5762]
[1693855934365,15.5,19.369,19.347,546.5762]
[1693855934660,0.45454546,19.373,19.347,546.5762]
[1693855934863,2.3538905,19.373,19.347,546.5762]
[1693855935060,15.5,19.371,19.347,546.5762]
[1693855935265,15.5,19.369,19.347,546.5762]
[1693855935461,0.45454546,19.373,19.347,546.5762]
[1693855935657,2.35388767,19.373,19.347,546.5762]
[1693855935859,15.5,19.371,19.347,546.5762]
[1693855936058,15.5,19.369,19.347,546.5762]
[1693855936363,0.45454546,19.369,19.347,546.5762]
[1693855936661,2.35388021,19.373,19.347,546.5762]
[1693855936860,15.5,19.371,19.347,546.5762]
[1693855937062,15.5,19.369,19.347,546.5762]
[1693855937259,586.0,19.374,19.347,546.5762]
[1693855937260,0.45454546,19.373,19.347,546.5762]
[1693855937461,2.35387981,19.373,19.347,546.5762]
[1693855937663,15.5,19.371,19.347,546.5762]
[1693855937864,15.5,19.369,19.347,546.5762]
[1693855938058,0.45454546,19.373,19.347,546.5762]
[1693855938358,2.3536378,19.373,19.347,546.5762]
[1693855938559,15.5,19.371,19.347,546.5762]
[1693855938758,586.0,19.374,19.347,546.5762]
[1693855938759,15.5,19.369,19.347,546.5762]
[1693855938956,0.45454546,19.373,19.366,0.06288641]
[1693855939260,2.35362987,19.373,19.366,0.06288641]
[1693855939455,15.5,19.371,19.366,0.06288641]
[1693855939656,0.45454546,19.371,19.366,0.06288641]
[1693855939857,2.35362468,19.374,19.366,0.06288641]
[1693855940060,0.45454546,19.373,19.366,0.06288641]
[1693855948871,0.45454546,19.373,19.366,0.00288641]
[1693855952371,41.17768594,19.373,19.366,0.00288641]
[1693855952573,15.5,19.371,19.366,0.00288641]
[1693855953575,15.5,19.371,19.355,21.8462]
[1693855954669,15.5,19.371,19.366,0.0628864]
[1693855963981,0.45454546,19.372,19.366,0.0628864]
[1693855964183,40.72314048,19.373,19.366,0.0628864]
[1693855964386,15.49,19.375,19.366,0.0628864]
[1693855966382,20.7996,19.381,19.366,0.0628864]
[1693855968386,15.49,19.375,19.366,0.0628864]
[1693855986302,35.9311,19.375,19.366,0.0628864]
[1693855997516,35.9311,19.375,19.356,500.0]
[1693855997718,15.49,19.375,19.356,500.0]
[1693855998518,20.3071,19.381,19.366,0.0628864]
[1693855999016,20.3071,19.375,19.366,0.0628864]
[1693855999413,293.33571804,19.382,19.366,0.0628864]
[1693855999617,22.1293,19.374,19.366,0.0628864]
[1693856012521,22.1293,19.374,19.357,25.83044]
[1693856013523,22.1293,19.374,19.366,0.0628864]
[1693856032643,22.1293,19.374,19.366,0.0028864]
[1693856044456,22.1293,19.374,19.357,25.83044]
[1693856044857,0.45454546,19.373,19.357,25.83044]
[1693856046355,0.45454546,19.373,19.348,41.62725863]
[1693856058665,0.45454546,19.373,19.366,0.0628864]
[1693856058964,0.45454546,19.373,19.366,0.0028864]
[1693856059159,22.21874546,19.373,19.366,0.0028864]
[1693856059359,15.48,19.371,19.366,0.0028864]
[1693856059559,15.48,19.369,19.366,0.0028864]
[1693856059763,15.48,19.371,19.366,0.0028864]
[1693856059961,15.48,19.369,19.366,0.0028864]
[1693856060160,15.48,19.371,19.366,0.0028864]
[1693856060362,15.48,19.369,19.366,0.0028864]
[1693856060564,15.48,19.371,19.366,0.0028864]
[1693856060761,15.48,19.369,19.366,0.0028864]
[1693856061062,15.48,19.371,19.366,0.0028864]
[1693856061262,15.48,19.369,19.366,0.0028864]
[1693856061464,15.48,19.371,19.366,0.0028864]
[1693856061665,15.48,19.369,19.366,0.0028864]
[1693856061864,15.48,19.371,19.366,0.0028864]
[1693856062065,15.48,19.369,19.366,0.0028864]
[1693856062265,15.48,19.371,19.366,0.0028864]
[1693856062465,15.48,19.369,19.366,0.0028864]
[1693856062661,15.48,19.371,19.366,0.0028864]
[1693856062862,15.48,19.369,19.366,0.0028864]
[1693856063062,15.48,19.371,19.366,0.0028864]
[1693856063362,15.48,19.369,19.366,0.0028864]
[1693856063667,15.48,19.371,19.366,0.0028864]
[1693856063856,15.48,19.369,19.366,0.0028864]
[1693856064062,15.48,19.371,19.366,0.0028864]
[1693856064265,15.48,19.369,19.366,0.0028864]
[1693856064466,15.48,19.371,19.366,0.0028864]
[1693856064663,15.48,19.369,19.366,0.0028864]
[1693856064859,15.48,19.371,19.366,0.0028864]
[1693856069667,15.48,19.371,19.347,22.0222]
[1693856074669,15.48,19.371,19.347,47.866]
[1693856075468,15.48,19.371,19.348,25.84246]
[1693856075666,15.48,19.371,19.348,60.88610952]
[1693856087283,0.45454546,19.372,19.348,60.88610952]
[1693856087481,41.70661156,19.373,19.357,500.0]
[1693856087679,318.68673298,19.374,19.358,21.4656]
[1693856087880,40.88142935,19.374,19.358,21.4656]
[1693856088084,40.88142935,19.374,19.357,500.0]
[1693856088287,40.88142935,19.374,19.358,21.4656]
[1693856088486,40.88142935,19.374,19.358,54.23661303]
[1693856088789,40.88142935,19.374,19.366,0.0628864]
[1693856102595,40.88142935,19.374,19.358,53.25361303]
[1693856103702,40.88142935,19.374,19.366,0.0628864]
[1693856122008,36.4876,19.375,19.366,0.0628864]
[1693856132824,36.4876,19.375,19.358,79.08272303]
[1693856133918,36.4876,19.375,19.366,0.0628864]
[1693856153831,36.4876,19.375,19.358,32.77101303]
[1693856153832,0.06,19.365,19.358,32.77101303]
[1693856157531,0.06,19.365,19.347,500.0]
[1693856157730,0.06,19.365,19.35,20.2385]
[1693856160531,0.06,19.365,19.357,500.0]
[1693856167938,0.06,19.365,19.358,57.00261006]
[1693856168439,0.06,19.365,19.359,25.82778]
[1693856169236,41.88016527,19.372,19.359,25.82778]
[1693856169439,36.93214546,19.375,19.359,25.82778]
[1693856183243,21.44214546,19.375,19.359,25.82778]
[1693856183742,0.45454546,19.375,19.359,25.82778]
[1693856186847,15.94454546,19.375,19.359,25.82778]
[1693856195345,15.94454546,19.375,19.358,52.53630006]
[1693856208362,0.45454546,19.374,19.358,52.53630006]
[1693856210161,0.45454546,19.374,19.358,207.23630006]
[1693856210363,277.80530363,19.376,19.367,500.0]
[1693856210564,41.66029942,19.381,19.367,500.0]
[1693856210762,277.80530363,19.381,19.368,21.4605]
[1693856210963,0.45454546,19.387,19.368,21.4605]
[1693856211165,2.3526567,19.387,19.367,500.0]
[1693856211462,0.45454546,19.386,19.368,21.1371]
[1693856211864,1.89811124,19.388,19.368,21.1371]
[1693856212161,0.45454546,19.387,19.368,21.1371]
[1693856213363,2.3526567,19.387,19.368,21.1371]
[1693856213563,0.45454546,19.386,19.369,25.81444]
[1693856219461,0.45454546,19.386,19.368,21.1371]
[1693856226975,15.48,19.384,19.369,25.81444]
[1693856227272,0.45454546,19.387,19.369,72.77853005]
[1693856227574,0.45454546,19.386,19.369,72.77853005]
[1693856227867,15.48,19.384,19.369,72.77853005]
[1693856228069,57.0036889,19.389,19.369,72.77853005]
[1693856228272,0.45454546,19.388,19.369,72.77853005]
[1693856238777,0.45454546,19.388,19.369,227.47853005]
[1693856238976,0.45454546,19.388,19.369,72.77853005]
[1693856240279,34.54563563,19.39,19.377,500.0]
[1693856240680,34.54563563,19.39,19.378,21.1085]
[1693856240977,0.45454546,19.396,19.378,21.1085]
[1693856241178,2.35173875,19.396,19.378,21.1085]
[1693856253588,44.52605539,19.396,19.378,21.1085]
[1693856253785,42.6288621,19.396,19.378,21.1085]
[1693856259284,1.89705472,19.395,19.378,21.1085]
[1693856265591,42.6288621,19.396,19.378,21.1085]
[1693856294123,1.89698783,19.395,19.378,21.1085]
[1693856302326,42.6288621,19.396,19.378,21.1085]
[1693856310630,42.17431664,19.396,19.378,21.1085]
[1693856310826,0.45454546,19.396,19.378,21.1085]
[1693856311026,15.48,19.397,19.378,21.1085]
[1693856311226,0.45454546,19.396,19.378,21.1085]
[1693856311533,15.48,19.397,19.378,21.1085]
[1693856311841,0.45454546,19.396,19.378,21.1085]
[1693856312022,15.48,19.397,19.378,21.1085]
[1693856312222,0.45454546,19.396,19.378,21.1085]
[1693856312422,15.48,19.397,19.378,21.1085]
[1693856312623,0.45454546,19.396,19.378,21.1085]
[1693856312831,15.48,19.397,19.378,21.1085]
[1693856313025,0.45454546,19.396,19.378,21.1085]
[1693856313333,15.48,19.397,19.378,21.1085]
[1693856313534,0.45454546,19.396,19.378,21.1085]
[1693856313825,15.48,19.397,19.378,21.1085]
[1693856314026,0.45454546,19.396,19.378,21.1085]
[1693856314332,886.50997621,19.4,19.378,21.1085]
[1693856314333,15.48,19.397,19.378,21.1085]
[1693856314634,0.45454546,19.396,19.378,21.1085]
[1693856314831,15.48,19.397,19.379,70.84519526]
[1693856315028,0.45454546,19.396,19.379,70.84519526]
[1693856315333,15.48,19.397,19.379,70.84519526]